fUSD/lending_fUSD_20240125
["ID","MTS","AMOUNT","RATE_DAILY","PERIOD"]
[312785891,1706221844599,-840.85262393,0.00042,120]
[312785892,1706221844608,-10278.13236589,0.00042,30]
[312785893,1706221844617,-300.0,0.00042,36]
[312785894,1706221844627,-161.83,0.0004219,2]
[312785895,1706221844636,-2596.29820316,0.00042717,4]
[312785896,1706221844645,-347.685479,0.0004274,14]
[312785897,1706221844660,-7650.77,0.000429,7]
[312785898,1706221844669,-514.38858359,0.000429,5]
[312785899,1706221844678,-253.69157574,0.000429,11]
[312785900,1706221844689,-718.98749752,0.00042997,2]
[312785901,1706221844699,-86347.155668,0.00043,30]
[312785902,1706221844708,-300.0,0.00043,37]
[312785903,1706221844717,-900.0,0.00043,3]
[312785904,1706221844726,-203.0,0.00043069,35]
[312785905,1706221844738,-201.91,0.000433,4]
[312785906,1706221844748,-201.91,0.000433,4]
[312785907,1706221844758,-201.91,0.000433,4]
[312785908,1706221844768,-201.91,0.000433,4]
[312785909,1706221844777,-201.91,0.000433,4]
[312785910,1706221844786,-201.91,0.000433,4]
[312785911,1706221844795,-201.91,0.000433,4]
[312785912,1706221844804,-201.91,0.000433,4]
[312785913,1706221844813,-201.91,0.000433,4]
[312785914,1706221844822,-201.91,0.000433,4]
[312785915,1706221844831,-201.91,0.000433,4]
[312785916,1706221844840,-201.91,0.000433,4]
[312785917,1706221844849,-201.91,0.000433,4]
[312785918,1706221844860,-201.91,0.000433,4]
[312785919,1706221844869,-201.91,0.000433,4]
[312785920,1706221844878,-201.91,0.000433,4]
[312785921,1706221844888,-201.91,0.000433,4]
[312785922,1706221844899,-201.91,0.000433,4]
[312785923,1706221844909,-201.91,0.000433,4]
[312785924,1706221844918,-201.91,0.000433,4]
[312785925,1706221844927,-152.57,0.000433,4]
[312785926,1706221844938,-152.57,0.000433,4]
[312785927,1706221844948,-347.685479,0.00043836,14]
[312785928,1706221844959,-161.75941534,0.00043928,3]
[312785929,1706221844969,-250.0,0.00044,38]
[312785930,1706221844978,-1418.31419349,0.00044072,8]
[312785931,1706221844987,-272.49226412,0.00044101,3]
[312785932,1706221844995,-1499.64744045,0.00044154,8]
[312785933,1706221845004,-258.15056601,0.00044209,3]
[312785934,1706221845013,-1209.91296339,0.0004426,3]
[312785935,1706221845023,-233.59562096,0.00044429,3]
[312785936,1706221845032,-161.83,0.00044454,2]
[312785937,1706221845042,-10074.73383512,0.00044594,3]
[312785938,1706221845051,-207.3288933,0.00044613,3]
[312785939,1706221845060,-212.23452326,0.00044665,3]
[312785940,1706221845069,-813.28856178,0.000447,14]
[312785942,1706221845783,-2439.2919,0.00022798,2]
[312785943,1706221845792,-1179.40560522,0.00022998,2]
[312785944,1706221845802,-210.47006803,0.00022999,2]
[312785945,1706221845810,-603.52005588,0.000447,14]
[312785946,1706221845852,-2272.35138234,0.000447,14]
[312785947,1706221845861,-241.27274452,0.00044745,3]
[312785948,1706221845869,-9160.77801066,0.0004475,2]
[312785949,1706221845879,-544.09407623,0.00044802,3]
[312785950,1706221845888,-211.69087618,0.00044817,3]
[312785951,1706221845897,-391.27272409,0.00044866,3]
[312785952,1706221845906,-495.39345983,0.00044869,3]
[312785953,1706221845916,-402.0,0.000449,30]
[312785954,1706221845925,-514.38858359,0.000449,5]
[312785955,1706221845934,-347.685479,0.00044932,14]
[312785956,1706221845944,-1269.70191735,0.00044937,3]
[312785957,1706221845955,-316905.84987792,0.00045,4]
[312785958,1706221845984,-2279.51891191,0.00045,4]
[312785959,1706221846095,-14113.77427899,0.00045,4]
[312785960,1706221846205,-44016.6049998,0.00045,4]
[312785961,1706221863872,204.0,0.00020494,2]
[312785962,1706221885604,607.62912466,0.00021,2]
[312785963,1706221918306,560.56555998,0.0002029,2]
[312785964,1706221929083,314.22,0.00021555,2]
[312785965,1706221997829,162.12,0.00021555,10]
[312785966,1706222281408,204.63822999,0.00021562,2]
[312785967,1706222420696,5152.45530553,0.00021562,7]
[312785968,1706222844309,181.39,0.00021555,2]
[312785969,1706222988275,-767.73599563,0.00021749,2]
[312785970,1706222988297,-150.0,0.0002175,2]
[312785989,1706223031891,-179.38954726,0.0002257,2]
[312785990,1706223031900,-159.91169751,0.00022598,2]
[312785991,1706223031909,-163.08839152,0.00022697,2]
[312785992,1706223031921,-354.11977769,0.00022697,2]
[312785993,1706223031933,-619.10457445,0.00022697,2]
[312785994,1706223031945,-68.98051818,0.00022697,2]
[312785995,1706223031954,-301.25336037,0.00022697,2]
[312785996,1706223031964,-764.84211533,0.00022697,2]
[312785997,1706223031973,-1627.05067148,0.00022698,4]
[312785998,1706223031985,-1216.61011879,0.00022698,4]
[312785999,1706223031994,-300.0,0.00022698,2]
[312786000,1706223032004,-150.0,0.00022698,2]
[312786001,1706223032015,-150.0,0.00022698,2]
[312786002,1706223032024,-5143.57327281,0.00022699,2]
[312786003,1706223032037,-2954.67761916,0.00022699,2]
[312786004,1706223032053,-5671.98805953,0.00022699,2]
[312786005,1706223032064,-1341.53946258,0.00022699,2]
[312786006,1706223032076,-3362.0055012,0.00022699,2]
[312786007,1706223032087,-3455.37354437,0.0002275,2]
[312786008,1706223032099,-655.60712406,0.0002275,2]
[312786009,1706223032111,-387.61028032,0.0002275,2]
[312786010,1706223032122,-395.76320725,0.0002275,2]
[312786011,1706223032133,-1533.26613323,0.0002275,2]
[312786012,1706223032145,-1428.89313008,0.0002275,2]
[312786013,1706223032156,-2147.15410892,0.0002275,2]
[312786014,1706223032168,-2013.91252975,0.0002275,2]
[312786015,1706223032180,-2336.31662357,0.0002275,2]
[312786016,1706223032192,-2409.34886205,0.0002275,2]
[312786017,1706223032201,-356.1578955,0.0002279,2]
[312786018,1706223032211,-5094.05466202,0.00022799,2]
[312786019,1706223032229,-499.99,0.00022799,2]
[312786021,1706223032243,-155.0,0.000228,2]
[312786023,1706223032254,-16767.6398,0.000228,2]
[312786025,1706223032266,-2012.2466,0.000228,2]
[312786026,1706223032275,-8287.7365,0.000228,2]
[312786027,1706223032286,-457.5831,0.000228,2]
[312786028,1706223032297,-481.3189,0.000228,2]
[312786029,1706223032308,-13236.24328122,0.000229,2]
[312786030,1706223032319,-201.39726702,0.00024,2]
[312786031,1706223032329,-352.0,0.00024648,2]
[312786032,1706223032339,-159.91169738,0.00024833,2]
[312786033,1706223032348,-42586.4557,0.000249,2]
[312786034,1706223032358,-3677.8279,0.000249,2]
[312786035,1706223032369,-450.0,0.00025,3]
[312786036,1706223032379,-934.10101204,0.00025,2]
[312786037,1706223032389,-323.14224298,0.00025,2]
[312786038,1706223032400,-167.46550336,0.00025,2]
[312786039,1706223032410,-242.30425329,0.00025,2]
[312786040,1706223032420,-509.35522682,0.00025,2]
[312786041,1706223032429,-158.75568138,0.00025,2]
[312786042,1706223032439,-155.0,0.00025,2]
[312786043,1706223032449,-162.0,0.000254,2]
[312786044,1706223032459,-1682.0,0.000254,2]
[312786045,1706223032468,-2000.0,0.000255,2]
[312786046,1706223032478,-500.0,0.00026,2]
[312786047,1706223032487,-622.51303378,0.00026861,2]
[312786048,1706223032498,-500.0,0.00027,3]
[312786049,1706223032508,-159.91169738,0.00027068,2]
[312786050,1706223032517,-161.52,0.00027397,2]
[312786051,1706223032526,-161.52,0.00027945,2]
[312786052,1706223032536,-161.52,0.00028493,2]
[312786053,1706223032545,-16870.113,0.0002886,2]
[312786054,1706223032555,-550.0,0.00029,3]
[312786055,1706223032565,-161.52,0.00029041,2]
[312786056,1706223032574,-159.91169738,0.00029303,2]
[312786057,1706223032583,-161.52,0.00029589,2]
[312786058,1706223032594,-1573.00938354,0.0003,4]
[312786059,1706223032603,-408.4947162,0.0003,2]
[312786060,1706223032614,-155.0,0.0003,2]
[312786061,1706223032623,-764.8442482,0.0003,4]
[312786062,1706223032633,-161.52,0.00030137,2]
[312786063,1706223032644,-161.52,0.00030685,2]
[312786064,1706223032654,-158.08,0.00030739,2]
[312786065,1706223032663,-163.42,0.00030938,2]
[312786066,1706223032673,-600.0,0.00031,3]
[312786067,1706223032682,-250.0,0.00031024,2]
[312786068,1706223032692,-1000.0,0.00031074,2]
[312786069,1706223032701,-161.52,0.00031233,2]
[312786070,1706223032711,-250.0,0.00031277,2]
[312786071,1706223032720,-159.91169738,0.00031539,2]
[312786072,1706223032733,-815.81,0.00031749,2]
[312786073,1706223032742,-161.52,0.00031781,2]
[312786074,1706223032752,-158.25,0.00031817,2]
[312786075,1706223032771,-1065.2,0.00031932,2]
[312786076,1706223032780,-158.25,0.00031945,2]
[312786077,1706223032790,-3498.76,0.00031969,2]
[312786078,1706223032799,-158.25,0.00032072,2]
[312786079,1706223032809,-158.25,0.000322,2]
[312786080,1706223032819,-158.25,0.00032327,2]
[312786081,1706223032828,-161.52,0.00032329,2]
[312786082,1706223032837,-158.25,0.00032455,2]
[312786083,1706223032847,-158.25,0.00032582,2]
[312786084,1706223032856,-158.25,0.0003271,2]
[312786085,1706223032866,-260.35,0.000328,2]
[312786086,1706223032876,-158.25,0.00032837,2]
[312786087,1706223032886,-161.52,0.00032877,2]
[312786088,1706223032895,-169.1,0.00032877,15]
[312786089,1706223032904,-158.25,0.00032965,2]
[312786090,1706223032914,-650.0,0.00033,3]
[312786091,1706223032923,-158.25,0.00033092,2]
[312786092,1706223032933,-158.25,0.0003322,2]
[312786093,1706223032942,-163.42,0.00033228,2]
[312786094,1706223032952,-158.25,0.00033348,2]
[312786095,1706223032961,-215.0,0.00033384,2]
[312786096,1706223032970,-1233.0,0.00033384,2]
[312786097,1706223032980,-1251.0,0.00033384,2]
[312786098,1706223032989,-695.616,0.00033384,2]
[312786099,1706223033000,-998.0,0.00033384,2]
[312786100,1706223033012,-426.0,0.00033384,2]
[312786101,1706223033022,-1936.0,0.00033384,2]
[312786102,1706223033033,-236.0,0.00033384,2]
[312786103,1706223033044,-866.0,0.00033384,2]
[312786104,1706223033055,-506.704,0.00033384,2]
[312786105,1706223033065,-150.0,0.00033384,2]
[312786106,1706223033074,-319.0,0.00033384,2]
[312786107,1706223033090,-815.81,0.00033393,2]
[312786108,1706223033101,-167.0,0.00033421,2]
[312786109,1706223033112,-158.25,0.00033475,2]
[312786110,1706223033123,-178.08,0.00033709,2]
[312786111,1706223033134,-159.91169738,0.00033774,2]
[312786112,1706223033144,-506.48212579,0.00034,4]
[312786113,1706223033154,-1000.0,0.00034,4]
[312786114,1706223033164,-158.08,0.00034324,2]
[312786115,1706223033175,-167.0,0.00034524,2]
[312786116,1706223033185,-1000.0,0.00034958,2]
[312786117,1706223033196,-700.0,0.00035,3]
[312786118,1706223033206,-815.81,0.00035037,2]
[312786119,1706223033217,-163.42,0.00035517,2]
[312786120,1706223033226,-150.0,0.00035616,2]
[312786121,1706223033236,-167.0,0.00035627,2]
[312786122,1706223033247,-3419.5060009,0.00036,5]
[312786123,1706223033256,-1815.48,0.00036,5]
[312786124,1706223033266,-1810.68,0.00036,5]
[312786125,1706223033276,-1804.62,0.00036,5]
[312786126,1706223033285,-1804.36,0.00036,5]
[312786127,1706223033295,-1838.48,0.00036,5]
[312786128,1706223033304,-159.91169738,0.00036009,2]
[312786129,1706223033313,-178.08,0.00036094,2]
[312786130,1706223033324,-815.81,0.00036681,2]
[312786131,1706223033333,-167.0,0.00036731,2]
[312786132,1706223033343,-750.0,0.00037,3]
[312786133,1706223033354,-239.63,0.000378,3]
[312786134,1706223033364,-239.63,0.000378,3]
[312786135,1706223033374,-239.63,0.000378,3]
[312786136,1706223033383,-239.63,0.000378,3]
[312786137,1706223033393,-239.63,0.000378,3]
[312786138,1706223033404,-239.63,0.000378,3]
[312786139,1706223033414,-239.63,0.000378,3]
[312786140,1706223033424,-239.63,0.000378,3]
[312786141,1706223033435,-239.63,0.000378,3]
[312786142,1706223033449,-239.63,0.000378,3]
[312786143,1706223033459,-239.63,0.000378,3]
[312786144,1706223033470,-239.63,0.000378,3]
[312786145,1706223033479,-239.63,0.000378,3]
[312786146,1706223033489,-239.63,0.000378,3]
[312786147,1706223033499,-239.63,0.000378,3]
[312786148,1706223033508,-239.63,0.000378,3]
[312786149,1706223033518,-239.63,0.000378,3]
[312786150,1706223033527,-239.63,0.000378,3]
[312786151,1706223033537,-239.63,0.000378,3]
[312786152,1706223033546,-239.63,0.000378,3]
[312786153,1706223033555,-167.0,0.00037834,2]
[312786154,1706223033565,-158.08,0.00037908,2]
[312786155,1706223033574,-159.91169738,0.00038244,2]
[312786156,1706223033583,-815.81,0.00038325,2]
[312786157,1706223033593,-150.0,0.00038356,2]
[312786158,1706223033602,-178.08,0.00038478,2]
[312786159,1706223033612,-155.0,0.00038698,7]
[312786160,1706223033621,-1000.0,0.00038843,2]
[312786161,1706223033631,-1038.51928126,0.0003888,2]
[312786162,1706223033640,-1038.51928126,0.0003888,2]
[312786163,1706223033650,-167.0,0.00038937,2]
[312786164,1706223033659,-1038.51928126,0.00038967,2]
[312786165,1706223033668,-701.12691554,0.00039,10]
[312786166,1706223033678,-800.0,0.00039,3]
[312786167,1706223033687,-1841.82,0.00039145,5]
[312786168,1706223033697,-1827.89,0.000392,5]
[312786169,1706223033706,-344.0,0.000393,2]
[312786170,1706223033715,-879.0,0.000393,2]
[312786171,1706223033724,-1000.0,0.000393,2]
[312786172,1706223033734,-815.81,0.00039968,2]
[312786173,1706223033743,-168.56115477,0.0004,4]
[312786174,1706223033754,-9294.82599659,0.0004,4]
[312786175,1706223033764,-2681.30267079,0.0004,4]
[312786176,1706223033773,-338.55528729,0.0004,4]
[312786177,1706223033788,-461.43417062,0.0004,4]
[312786178,1706223033799,-2232.16166621,0.0004,4]
[312786179,1706223033811,-1065.54810808,0.0004,4]
[312786180,1706223033822,-291.09812629,0.0004,4]
[312786181,1706223033834,-351.23714474,0.0004,4]
[312786183,1706223037836,-4902.54171779,0.0004,4]
[312786184,1706223037944,-44685.45276,0.0004,4]
[312786185,1706223037953,-14331.88512259,0.0004,4]
[312786186,1706223037965,-7717.88635239,0.0004,4]
[312786187,1706223037974,-1085.37856486,0.0004,4]
[312786188,1706223037984,-2272.01463956,0.0004,4]
[312786189,1706223037993,-1300.0,0.0004,60]
[312786190,1706223038003,-159.91169738,0.00040479,2]
[312786191,1706223038014,-178.08,0.00040862,2]
[312786192,1706223038023,-850.0,0.00041,3]
[312786193,1706223038032,-5467.07274006,0.0004149,11]
[312786194,1706223038041,-158.08,0.00041493,2]
[312786195,1706223038051,-1500.0,0.000415,36]
[312786196,1706223038060,-384.73155794,0.00041512,2]
[312786197,1706223038069,-1073.463262,0.00041512,30]
[312786198,1706223038078,-1722.90930061,0.00041512,30]
[312786199,1706223038094,-67.68273839,0.00041512,30]
[312786200,1706223038103,-233.260584,0.00041512,30]
[312786201,1706223038113,-1245.0,0.00042033,7]
[312786202,1706223038122,-420.64176698,0.00042138,4]
[312786203,1706223038132,-1038.51928126,0.00042322,4]
[312786204,1706223038140,-159.91169738,0.00042714,2]
[312786205,1706223038149,-1000.0,0.00042727,2]
[312786206,1706223038157,-5467.07274006,0.0004299,11]
[312786207,1706223038167,-303.60833749,0.00042998,4]
[312786208,1706223038175,-1249.5542374,0.00042998,4]
[312786209,1706223038185,-1075.57554515,0.00042998,2]
[312786210,1706223038195,-155.95214495,0.00042998,4]
[312786211,1706223038203,-416.7405,0.00042998,4]
[312786212,1706223038212,-183.68315749,0.00042999,4]
[312786213,1706223038220,-9236.06268428,0.00043,30]
[312786215,1706223038229,-900.0,0.00043,3]
[312786217,1706223038239,-169.1,0.00043151,15]
[312786218,1706223038247,-1065.2,0.00043165,2]
[312786219,1706223038257,-5467.07274006,0.0004329,11]
[312786220,1706223038267,-239.63,0.000433,4]
[312786221,1706223038275,-239.63,0.000433,4]
[312786222,1706223038283,-239.63,0.000433,4]
[312786223,1706223038292,-239.63,0.000433,4]
[312786224,1706223038301,-239.63,0.000433,4]
[312786225,1706223038310,-239.63,0.000433,4]
[312786226,1706223038319,-239.63,0.000433,4]
[312786227,1706223038328,-239.63,0.000433,4]
[312786229,1706223038338,-239.63,0.000433,4]
[312786231,1706223038347,-239.63,0.000433,4]
[312786233,1706223038356,-239.63,0.000433,4]
[312786235,1706223038365,-239.63,0.000433,4]
[312786237,1706223038375,-239.63,0.000433,4]
[312786239,1706223038384,-239.63,0.000433,4]
[312786241,1706223038393,-239.63,0.000433,4]
[312786243,1706223038402,-239.63,0.000433,4]
[312786244,1706223038412,-239.63,0.000433,4]
[312786247,1706223038421,-239.63,0.000433,4]
[312786249,1706223038431,-239.63,0.000433,4]
[312786251,1706223038441,-239.63,0.000433,4]
[312786253,1706223038450,-204.0,0.00044729,10]
[312786255,1706223038459,-196.29790412,0.00044783,3]
[312786257,1706223038469,-342.11680995,0.00044783,8]
[312786258,1706223038479,-761.17643172,0.00044783,8]
[312786260,1706223038488,-654.68037038,0.000448,12]
[312786262,1706223038497,-500.0,0.000448,16]
[312786264,1706223038507,-1391.22269202,0.000448,17]
[312786267,1706223038516,-380.58821586,0.00044843,8]
[312786269,1706223038525,-5467.07274006,0.00044886,12]
[312786271,1706223038535,-16401.2182202,0.0004489,12]
[312786273,1706223038544,-397.0,0.0004489,2]
[312786275,1706223038554,-201.0,0.0004489,3]
[312786276,1706223038564,-821.82095652,0.0004489,2]
[312786279,1706223038582,-166.94701556,0.00044896,2]
[312786282,1706223038592,-8083.4011,0.000449,3]
[312786284,1706223038602,-7526.1705,0.000449,2]
[312786286,1706223038611,-152.85182367,0.000449,25]
[312786288,1706223038620,-1975.47412702,0.000449,20]
[312786290,1706223038629,-1100.0,0.000449,16]
[312786292,1706223038638,-16855.6842,0.000449,120]
[312786294,1706223038648,-1000.0,0.000449,120]
[312786296,1706223038657,-326.95091114,0.00044904,8]
[312786298,1706223038666,-169.90038988,0.00044941,3]
[312786300,1706223038676,-159.91169738,0.00044949,2]
[312786302,1706223038687,-7999.99,0.00044976,30]
[312786304,1706223038697,-419.96246939,0.00044976,4]
[312786305,1706223038707,-18896.32293783,0.0004498,12]
[312786308,1706223038721,-10711.09765685,0.0004498,12]
[312786310,1706223038733,-37831.43500348,0.0004498,12]
[312786313,1706223038747,-941.769107,0.0004498,12]
[312786315,1706223038758,-30026.68461594,0.0004498,12]
[312786317,1706223038767,-5467.07274006,0.00044987,12]
[312786319,1706223038776,-43466.242644,0.00044987,10]
[312786321,1706223038787,-8182.79999999,0.00044987,10]
[312786323,1706223038799,-3610.63298702,0.00044987,10]
[312786325,1706223038810,-4201.15902018,0.00044987,10]
[312786327,1706223038825,-799.36,0.00044987,10]
[312786330,1706223038836,-403.09841461,0.00044987,10]
[312786508,1706223040550,-207.75689818,0.000377,2]
[312786510,1706223040560,-129.51513897,0.00044987,10]
[312786551,1706223041182,-27570.29154543,0.00044987,10]
[312786552,1706223041191,-16401.2182202,0.00044988,12]
[312786553,1706223041201,-5467.07274006,0.00044989,12]
[312786554,1706223041210,-23515.71313081,0.0004499,12]
[312786555,1706223041237,-3424.45228262,0.0004499,12]
[312786556,1706223041297,-1642.51693484,0.0004499,12]
[312786557,1706223041349,-15129.30839951,0.0004499,12]
[312786616,1706223043593,-695.61530089,0.0003,4]
[312786617,1706223043702,-67.76740255,0.0003,4]
[312786618,1706223043713,-514.38858359,0.0004489,5]
[312786619,1706223043722,-21892.88213292,0.0004499,12]
[312786620,1706223043732,-88363.0997502,0.0004499,10]
[312786621,1706223043744,-1878.0,0.0004499,2]
[312786622,1706223043754,-389.0,0.0004499,2]
[312786623,1706223043763,-375.25537711,0.00044996,5]
[312786624,1706223043773,-399.43749862,0.00044996,2]
[312786625,1706223043782,-3441.72254948,0.00044997,4]
[312786626,1706223043791,-1486.50553329,0.00044997,4]
[312786627,1706223043800,-1984.18655,0.00044998,2]
[312786628,1706223043810,-234.89781562,0.00044998,2]
[312786629,1706223043819,-11919.73772549,0.00044998,4]
[312786630,1706223043828,-169.30978566,0.00044998,4]
[312786631,1706223043838,-1000.0,0.00044998,10]
[312786632,1706223043847,-1262.37262765,0.00044998,4]
[312786633,1706223043856,-260.29941624,0.00044998,4]
[312786634,1706223043865,-2949.83197426,0.00044998,4]
[312786635,1706223043875,-6569.15218077,0.00044998,4]
[312786636,1706223043884,-1955.24752545,0.00044998,4]
[312786638,1706223043892,-289.74620309,0.00044998,4]
[312786640,1706223043902,-155.37183511,0.00044998,4]
[312786641,1706223043911,-697.35894259,0.00044998,30]
[312786643,1706223043920,-155.0,0.00044998,4]
[312786644,1706223043929,-682.29190784,0.00044998,4]
[312786645,1706223043938,-2598.67036357,0.00044998,4]
[312786646,1706223043947,-230.73082258,0.00044998,4]
[312786647,1706223043956,-1718.982874,0.00044998,14]
[312786648,1706223043965,-408.03708546,0.00044999,4]
[312786649,1706223043974,-295.73068383,0.00044999,4]
[312786650,1706223043983,-502.01326483,0.00044999,4]
[312786651,1706223043992,-291.80377604,0.00044999,4]
[312786652,1706223044001,-155.64276988,0.00044999,2]
[312786653,1706223044013,-346.4408392,0.00044999,4]
[312786654,1706223044022,-401.03358243,0.00044999,4]
[312786655,1706223044031,-155.0,0.00044999,4]
[312786656,1706223044041,-155.0,0.00044999,4]
[312786657,1706223044050,-2300.07012469,0.00044999,4]
[312786658,1706223044059,-190.93225541,0.00044999,4]
[312786659,1706223044069,-219.36744003,0.00044999,4]
[312786660,1706223044078,-513.6393,0.00044999,4]
[312786661,1706223044088,-4640.64426459,0.00044999,4]
[312786662,1706223044097,-5220.28105398,0.00044999,4]
[312786663,1706223044106,-309.68661735,0.00044999,2]
[312786664,1706223044115,-30334.97581558,0.00045,4]
[312786667,1706223045925,-576.79143381,0.00045,4]
[312786668,1706223045978,-2307.87070252,0.00045,4]
[312786689,1706223068670,-578.31253874,0.0002175,2]
[312786690,1706223080352,2956.92020342,0.000249,9]
[312786691,1706223089584,-1104.86730331,0.0002175,2]
[312786698,1706223265230,178.84,0.00028589,120]
[312786699,1706223550162,158.49,0.00021355,2]
[312786700,1706223727572,300.1034,0.00021589,2]
[312786701,1706224033110,700.0,0.000222,8]
[312786702,1706224035198,1400.0,0.000223,8]
[312786703,1706224037333,2100.0,0.000224,8]
[312786704,1706224039459,2800.0,0.000225,8]
[312786705,1706224041543,3500.0,0.000226,8]
[312786706,1706224043656,700.0,0.000227,8]
[312786707,1706224045756,700.0,0.000228,8]
[312786708,1706224047844,700.0,0.000229,8]
[312786709,1706224086123,158.49,0.00021245,2]
[312786718,1706224238142,-799.83,0.00021689,2]
[312786719,1706224238515,-103195.31466146,0.00021689,2]
[312786720,1706224238525,-159.91169738,0.000219,2]
[312786721,1706224238536,-176.54,0.00022,2]
[312786722,1706224238546,-150.18,0.00022229,2]
[312786723,1706224238555,-159.91169738,0.00022233,2]
[312786724,1706224238565,-719.41,0.00022314,2]
[312786726,1706224238574,-176.54,0.00022548,2]
[312786727,1706224238584,-159.91169738,0.00022567,2]
[312786728,1706224238593,-2500.0,0.00022809,3]
[312786729,1706224238603,-8221.23477332,0.0002288,2]
[312786730,1706224238612,-572.8453241,0.00022899,2]
[312786731,1706224238621,-572.84532408,0.00022899,2]
[312786732,1706224238631,-572.84532408,0.00022899,2]
[312786733,1706224238640,-572.84532408,0.00022899,2]
[312786734,1706224238650,-572.84532408,0.000229,2]
[312786735,1706224238660,-572.84532408,0.000229,2]
[312786736,1706224238670,-572.84532408,0.000229,2]
[312786737,1706224238679,-5000.0,0.000229,2]
[312786739,1706224238688,-152.85182367,0.000229,2]
[312786741,1706224238698,-166.94701556,0.000229,2]
[312786743,1706224238707,-572.84532408,0.000229,2]
[312786745,1706224238716,-38265.24896082,0.000229,2]
[312786747,1706224238725,-159.91169738,0.000229,2]
[312786749,1706224238735,-3502.15421769,0.000229,2]
[312786752,1706224238745,-957.32809219,0.000229,2]
[312786754,1706224238755,-371.10607446,0.000229,4]
[312786756,1706224238765,-206.27904587,0.000229,2]
[312786758,1706224238774,-1078.3111222,0.00022996,2]
[312786760,1706224238783,-887.04158841,0.00022997,2]
[312786762,1706224238793,-499.99,0.00022997,2]
[312786764,1706224238802,-232036.19723105,0.00022998,2]
[312786765,1706224238812,-500.0,0.00022999,2]
[312786767,1706224238822,-500.0,0.00022999,2]
[312786770,1706224238835,-500.0,0.00022999,2]
[312786772,1706224238844,-463.00060438,0.00022999,2]
[312786774,1706224238854,-500.0,0.00022999,2]
[312786776,1706224238863,-276.13766547,0.00022999,2]
[312786778,1706224238873,-516.59105061,0.00022999,2]
[312786780,1706224238882,-500.0,0.00022999,2]
[312786782,1706224238892,-500.0,0.00022999,2]
[312786784,1706224238901,-541.50687945,0.00022999,2]
[312786786,1706224238911,-500.0,0.00022999,2]
[312786788,1706224238921,-500.0,0.00022999,2]
[312786790,1706224238931,-4739136.81302143,0.00023,2]
[312786793,1706224238948,-1237.078,0.00023,2]
[312786956,1706224241329,-3769769.80944153,0.00023,2]
[312786957,1706224241384,-1114.69500007,0.00023,2]
[312786958,1706224241493,-199889.99999991,0.00023,2]
[312787071,1706224246393,-289.63799347,0.00023,2]
[312787072,1706224246406,-335.58329469,0.00023,2]
[312787562,1706224561286,152.71,0.00019637,2]
[312787835,1706225043455,152.71,0.0002095,2]
[312787836,1706225228514,200.0,0.000224,8]
[312787837,1706225230600,500.0,0.000225,8]
[312787838,1706225232691,800.0,0.000226,8]
[312787839,1706225235012,1100.0,0.000227,8]
[312787840,1706225237095,1400.0,0.000228,8]
[312787841,1706225239186,200.0,0.000229,8]
[312787842,1706225293137,800.0,0.00021555,2]
[312787843,1706225326803,-1000.0,0.00021637,2]
[312787844,1706225326824,-4494.01241334,0.00021638,2]
[312787845,1706225326845,-237.04,0.00021965,2]
[312787846,1706225326867,-150.0,0.00022,2]
[312787847,1706225326891,-150.0,0.00022,2]
[312787848,1706225326913,-150.0,0.00022,2]